[Event "GCT 11th Sinquefield Cup 2024"]
[Site "Saint Louis"]
[Date "2024.08.26"]
[Round "7.2"]
[White "Abdusattorov, Nodirbek"]
[Black "So, Wesley"]
[Result "1-0"]
[ECO "E42"]
[WhiteElo "2762"]
[BlackElo "2751"]
[Annotator "TA"]
[PlyCount "75"]
[EventDate "2024.08.09"]
[EventType "tourn"]
[EventCountry "USA"]
[SourceTitle "playchess.com"]
[Source "ChessBase"]
[SourceQuality "1"]
[TimeControl "7200+30"]

{[%evp 18,75,12,13,21,29,17,23,11,12,37,43,55,60,56,44,78,69,74,80,84,116,92,98,119,127,131,140,127,120,180,175,186,179,189,206,192,203,415,309,416,337,341,326,366,366,366,366,366,366,358,358,506,475,560,462,443,437,1403,1351]} 1. d4 {[%emt 0:02:11]} Nf6 {[%emt 0:00:06]} 2. c4 {[%emt 0:00:07]} e6 {[%emt 0:00:03]} 3. Nc3 {[%emt 0:00:47]} Bb4 {[%emt 0:00:05]} 4. e3 {[%emt 0:00:08]} c5 {[%emt 0:00:03]} 5. Nge2 {[%emt 0:00:31]} d5 {[%emt 0:00:05]} 6. a3 {[%emt 0:00:33]} Ba5 {[%emt 0:00:05] outshines the older 6...Bxc3+.} 7. dxc5 {[%emt 0:00:20]} dxc4 {[%emt 0:00:04] E42: Nimzo-Indian: Rubinstein: 4...c5 5 Ne2.} 8. Bd2 {[%emt 0:00:54]} O-O {[%emt 0:00:07]} 9. Ng3 {[%emt 0:00:22]} b6 {[%emt 0:00:06]} 10. Bxc4 {[%emt 0:00:08]} bxc5 {[%emt 0:00:04]} 11. O-O {[%emt 0:00:44]} Nbd7 {[%emt 0:00:16]} 12. Qc2 {[%emt 0:00:17]} Bb7 {[%emt 0:01:30]} 13. Rfd1 {[%emt 0:01:44]} h5 {[%emt 0:05:06]} 14. h3 $5 $146 {[%emt 0:07:00][%mdl 8] New and interesting.} ({Predecessor:} 14. Nge4 Rb8 15. Rab1 Qc7 16. Ng5 Ba8 17. Bf1 c4 18. Ne2 Rb5 19. Bxa5 Rxa5 20. h4 {½-½ Giri,A (2764)-Duda,J (2731) Meltwater Tour Final rapid 2022 (3.2)}) 14... h4 {[%emt 0:23:31]} 15. Nge4 {[%emt 0:04:32]} Nxe4 {[%emt 0:03:27]} 16. Nxe4 {[%emt 0:07:02]} Bxe4 {[%emt 0:01:13]} 17. Qxe4 {[%emt 0:00:07]} Nf6 {[%emt 0:00:13]} 18. Qc2 {[%emt 0:00:09]} (18. Qxh4 Bxd2 19. Ra2 Qa5 $15) 18... Qb6 {[%emt 0:06:11]} 19. Qa4 {[%emt 0:06:57]} Bxd2 {[%emt 0:00:18]} 20. Rxd2 {[%emt 0:00:01]} Rad8 {[%emt 0:22:04] [#]} 21. Rc2 $1 {[%emt 0:01:51]} Qb7 {[%emt 0:04:55]} 22. Be2 {[%emt 0:12:30]} Qe4 {[%emt 0:01:14]} 23. Rc4 {[%emt 0:07:09]} (23. Qxa7 $2 Qxc2 24. Qa6 Rd2 $19 (24... Qxb2 $2 25. Rf1 $19)) 23... Qf5 {[%emt 0:01:00]} (23... Qg6 $16) 24. Rac1 $18 {[%emt 0:05:41]} (24. Qxa7 Ne4 25. Rf1 Nd2 $16) (24. Rxh4 $6 Rd2 25. Bf3 Qe5 $16) 24... Rd2 {[%emt 0:05:24]} 25. Rxc5 {[%emt 0:00:50]} e5 {[%emt 0:00:28]} 26. R5c2 {[%emt 0:06:05]} Rfd8 {[%emt 0:01:08]} 27. Qa5 {[%emt 0:01:33]} Ne4 $2 {[%emt 0:06:29]} (27... R2d7 28. b4 Qe6) 28. Bf3 {[%emt 0:00:16]} (28. Qxa7 Qxf2+ 29. Kh2 Qxe2 $19 (29... Rxe2 $2 30. Rxe2 Qxe2 31. Qe7 $19)) 28... R8d6 {[%emt 0:08:36]} 29. Qb4 {[%emt 0:11:17]} (29. Qxa7 Ng5 (29... Nxf2 $2 30. Rxd2 Rxd2 31. Rf1 $18) 30. Rxd2 (30. Qa8+ Kh7 $16) 30... Nxf3+ 31. gxf3 Rxd2 32. Qb8+ Kh7 $18) 29... Rxc2 {[%emt 0:06:49]} 30. Rxc2 {[%emt 0:00:09]} Ng5 {[%emt 0:02:51]} 31. Qxd6 {[%emt 0:00:07]} Nxf3+ {[%emt 0:01:23]} 32. gxf3 {[%emt 0:00:03]} Qxc2 {[%emt 0:00:03]} 33. Qb8+ {[%emt 0:00:02]} Kh7 {[%emt 0:00:03]} 34. Qxe5 {[%emt 0:00:02]} (34. Qxa7 Qb1+ 35. Kg2 Qg6+ 36. Kh2 Qc2 $14) 34... g6 {[%emt 0:00:19]} (34... Qg6+ $142 35. Kh2 Qb6 36. Qe4+ Kg8 37. Qe8+ (37. Qxh4 Qxb2 38. a4 Qc2 $18) 37... Kh7 38. Qxf7 Qxb2 39. Qh5+ (39. Qxa7 Qxf2+ 40. Kh1 Qxf3+ 41. Kg1 Qg3+ 42. Kf1 Qxh3+ 43. Ke1 Qg3+ 44. Ke2 Qg2+ 45. Ke1 h3 $11) 39... Kg8 40. Qe8+ (40. Qxh4 Qxa3 41. Qc4+ Kh7 $16) 40... Kh7) 35. Qd4 {[%emt 0:01:19]} Kg8 {[%emt 0:00:11]} 36. Qd8+ {[%emt 0:00:07]} Kg7 {[%emt 0:00:05]} 37. Qxh4 {[%emt 0:00:16]} Qxb2 {[%emt 0:00:04]} (37... Qc7 $142 38. Qb4 Qe5) 38. Qd4+ {[%emt 0:00:08]} 1-0

[Event "GCT 11th Sinquefield Cup 2024"]
[Site "Saint Louis"]
[Date "2024.08.26"]
[Round "7.3"]
[White "Praggnanandhaa R"]
[Black "Nepomniachtchi, Ian"]
[Result "1/2-1/2"]
[ECO "C42"]
[WhiteElo "2749"]
[BlackElo "2767"]
[Annotator "TA"]
[PlyCount "37"]
[EventDate "2024.08.09"]
[EventType "tourn"]
[EventCountry "USA"]
[SourceTitle "playchess.com"]
[Source "ChessBase"]
[SourceQuality "1"]
[TimeControl "7200+30"]

{[%evp 19,37,37,56,46,60,68,69,67,63,61,62,43,58,57,59,0,47,0,53,0]} 1. e4 {[%emt 0:01:16]} e5 {[%emt 0:00:05]} 2. Nf3 {[%emt 0:00:28]} Nf6 {[%emt 0:00:06]} 3. Nxe5 {[%emt 0:00:09]} d6 {[%emt 0:00:04]} 4. Nf3 {[%emt 0:00:06]} Nxe4 {[%emt 0:00:04]} 5. d4 {[%emt 0:00:06]} d5 {[%emt 0:00:04]} 6. Bd3 {[%emt 0:00:05]} Bd6 {[%emt 0:00:04]} 7. O-O {[%emt 0:00:13]} O-O {[%emt 0:00:04]} 8. c4 {[%emt 0:00:03]} c6 {[%emt 0:00:04]} 9. Re1 {[%emt 0:00:11]} Bg4 {[%emt 0:00:05]} 10. h3 {[%emt 0:17:37]} Bh5 {[%emt 0:00:59]} 11. Bxe4 {[%emt 0:02:48]} dxe4 {[%emt 0:00:28]} 12. Rxe4 {[%emt 0:00:02]} Nd7 {[%emt 0:00:17]} 13. Nc3 {[%emt 0:08:59]} h6 {[%emt 0:01:00]} 14. Re1 {[%emt 0:09:22]} f5 {[%emt 0:00:34]} 15. Qd3 {[%emt 0:09:05]} Nc5 {[%emt 0:00:17]} 16. Qc2 {[%emt 0:05:05]} (16. dxc5 $2 {loses.} Bh2+ 17. Kxh2 Qxd3 $19) 16... Nd7 {[%emt 0:00:30]} 17. Qd3 {[%emt 0:06:11]} Nc5 {[%emt 0:00:23]} 18. Qc2 {[%emt 0:10:56]} (18. dxc5 $2 {too greedy.} Bh2+ 19. Kxh2 Qxd3 $19) 18... Nd7 {[%emt 0:00:29]} 19. Qd3 {[%emt 0:13:52] Weighted Error Value: White=0.17 (very precise) /Black=0.05 (flawless) .  Mistake:       	White=1     	---        OK:         	White=1     	Black=4} (19. Re3 $14) 1/2-1/2

[Event "GCT 11th Sinquefield Cup 2024"]
[Site "Saint Louis"]
[Date "2024.08.26"]
[Round "7.4"]
[White "Firouzja, Alireza"]
[Black "Ding, Liren"]
[Result "1-0"]
[ECO "C54"]
[WhiteElo "2751"]
[BlackElo "2745"]
[Annotator "TA"]
[PlyCount "85"]
[EventDate "2024.08.09"]
[EventType "tourn"]
[EventCountry "USA"]
[SourceTitle "playchess.com"]
[Source "ChessBase"]
[SourceQuality "1"]
[TimeControl "7200+30"]

{[%evp 28,85,10,21,10,-13,-9,-14,0,-2,-3,-51,5,13,5,39,25,20,12,-16,0,0,74,0,54,40,36,5,10,23,47,45,170,171,247,249,259,277,285,285,308,293,300,289,317,284,359,345,362,377,364,291,296,237,237,232,293,297,420,420]} 1. e4 {[%emt 0:00:55]} e5 {[%emt 0:00:12]} 2. Nf3 {[%emt 0:00:05]} Nc6 {[%emt 0:00:04]} 3. Bc4 {[%emt 0:00:06]} Nf6 {[%emt 0:00:05]} 4. d3 {[%emt 0:00:05]} Bc5 {[%emt 0:00:57]} 5. c3 {[%emt 0:00:10]} d6 {[%emt 0:00:52]} 6. a4 {[%emt 0:01:06] C54: Giuoco Piano: 4 c3 Nf6, main lines with 5 d4 and 5 d3.} a5 {[%emt 0:03:54]} 7. Bg5 {[%emt 0:00:07]} h6 {[%emt 0:00:12]} 8. Bh4 {[%emt 0:00:06]} Qe7 {[%emt 0:00:41]} 9. O-O {[%emt 0:00:34]} g5 {[%emt 0:14:23]} 10. Bg3 {[%emt 0:01:08]} Bg4 {[%emt 0:00:03]} 11. Nbd2 {[%emt 0:08:53]} Ba7 {[%emt 0:17:19]} 12. Bb5 $146 {[%emt 0:11:48]} ({Predecessor:} 12. Qc2 Nh5 13. Kh1 Nf4 14. Bxf4 gxf4 15. Bb5 O-O 16. h3 Bd7 17. d4 exd4 18. cxd4 Nxd4 19. Nxd4 Bxd4 20. Qxc7 {0-1 Demchenko,A (2609)-Kurmangaliyeva,L (2281) Titled Tuesday intern op 14th May Late blitz 2024 (6)}) 12... O-O {[%emt 0:13:16]} 13. Re1 {[%emt 0:18:11]} Nh5 {[%emt 0:20:51]} 14. Kh1 {[%emt 0:02:11]} Ng7 {[%emt 0:11:41]} 15. h3 {[%emt 0:19:08]} Bh5 {[%emt 0:00:09]} 16. Bc4 {[%emt 0:00:06]} Kh8 {[%emt 0:03:40]} 17. Bd5 {[%emt 0:00:12]} Nd8 {[%emt 0:00:57]} 18. d4 {[%emt 0:01:05]} f6 {[%emt 0:02:00]} 19. Nf1 {[%emt 0:02:42]} (19. Nb3 $11) 19... c6 {[%emt 0:00:33]} (19... exd4 $15 20. cxd4 Nc6) 20. Ba2 $11 {[%emt 0:01:22]} Nde6 {[%emt 0:06:48]} 21. Ne3 {[%emt 0:00:34]} Rad8 {[%emt 0:02:10]} 22. Ng4 {[%emt 0:05:55]} Kh7 {[%emt 0:01:42]} 23. Bb1 {[%emt 0:02:33]} Bg6 {[%emt 0:00:22]} 24. Qd2 {[%emt 0:02:04]} Nf4 {[%emt 0:11:25]} (24... Rfe8 $11 {remains equal.}) 25. Bc2 {[%emt 0:02:54]} ({Better is} 25. Bxf4 $16 {Bg3 is the strong threat.} gxf4 26. Nh4) 25... Qe6 {[%emt 0:10:40]} (25... Nge6 $11) 26. Rad1 {[%emt 0:10:33]} (26. Bxf4 $5 exf4 27. Nh4 gxh4 28. Qxf4 $14) 26... h5 {[%emt 0:00:05]} 27. Ngh2 {[%emt 0:00:45]} (27. Ne3 {feels hotter.} Nxh3 28. Nf5 Nf4 29. Bxf4 gxf4 30. N3h4) 27... Qf7 {[%emt 0:03:17]} 28. Nf1 {[%emt 0:02:43]} Nfe6 {[%emt 0:02:35]} 29. Ne3 {[%emt 0:00:59]} exd4 {[%emt 0:00:06]} ({Black should try} 29... Kh8 $14) 30. cxd4 $18 {[%emt 0:00:53]} (30. Nxd4 Rfe8 $16) 30... d5 {[%emt 0:00:09] [#]} (30... Bb8 {was worth a try.} 31. Qxa5 Rd7) 31. exd5 $1 $18 {[%emt 0:00:44]} (31. Qxa5 b6 32. Qc3 dxe4 $14) 31... cxd5 {[%emt 0:00:04]} 32. Bxg6+ {[%emt 0:00:26]} (32. Qxa5 Bxc2 33. Nxc2 b6 $16) 32... Qxg6 {[%emt 0:00:15]} 33. Qxa5 {[%emt 0:00:04]} Bb8 {[%emt 0:01:08]} 34. Bxb8 {[%emt 0:02:31]} (34. Nxd5 Bxg3 35. fxg3 Qf5 36. Nxf6+ Qxf6 $11) 34... Rxb8 {[%emt 0:00:05]} 35. Qxd5 {[%emt 0:00:44]} ({But not} 35. Nxd5 $6 g4 $18) 35... Nf4 {[%emt 0:00:04]} 36. Qb5 {[%emt 0:01:08]} g4 {[%emt 0:00:33]} 37. hxg4 {[%emt 0:02:34]} ({Resist} 37. Nh4 Qg5 $18) 37... hxg4 {[%emt 0:00:04]} 38. Nh4 {[%emt 0:01:24]} Qg5 {[%emt 0:00:04]} 39. Nef5 {[%emt 0:01:38]} Nxf5 {[%emt 0:00:18]} 40. Qxf5+ {[%emt 0:01:11]} Qxf5 {[%emt 0:00:42]} 41. Re7+ {[%emt 0:01:16]} ({Much less strong is} 41. Nxf5 Nd5 42. Ne3 Nxe3 43. Rxe3 Ra8 $18) 41... Kh6 {[%emt 0:00:04]} 42. Nxf5+ {[%emt 0:00:04]} Kg6 {[%emt 0:02:15]} (42... Kg5 $142) 43. Nh4+ {[%emt 0:00:34]} 1-0

[Event "GCT 11th Sinquefield Cup 2024"]
[Site "Saint Louis"]
[Date "2024.08.26"]
[Round "7.5"]
[White "Caruana, Fabiano"]
[Black "Gukesh D"]
[Result "1/2-1/2"]
[ECO "C55"]
[WhiteElo "2793"]
[BlackElo "2766"]
[Annotator "TA"]
[PlyCount "120"]
[EventDate "2024.08.09"]
[EventType "tourn"]
[EventCountry "USA"]
[SourceTitle "playchess.com"]
[Source "ChessBase"]
[SourceQuality "1"]
[TimeControl "7200+30"]

{[%evp 40,120,40,33,25,39,32,32,35,23,26,22,33,17,43,51,46,31,29,23,64,63,89,83,96,61,87,84,91,95,87,91,101,97,97,87,84,81,161,68,60,70,65,8,8,8,24,24,24,24,24,0,0,0,0,0,0,0,0,0,0,0,0,0,8,0,0,0,0,0,0,0,0,0,0,0,0,0,0,0,0,0,0]} 1. e4 {[%emt 0:00:03]} e5 {[%emt 0:00:06]} 2. Nf3 {[%emt 0:00:05]} Nc6 {[%emt 0:00:10]} 3. Bc4 {[%emt 0:00:07]} Nf6 {[%emt 0:00:08]} 4. d3 {[%emt 0:00:06]} a6 {[%emt 0:00:05]} 5. O-O {[%emt 0:00:37]} h6 {[%emt 0:00:08]} 6. c3 {[%emt 0:00:35] C55: Two Knights: 4 d3, 4 d4 exd4 5 e5 and Max Lange Attack.} d6 {[%emt 0:00:13]} 7. Re1 {[%emt 0:03:44]} g5 {[%emt 0:11:10]} 8. Na3 {[%emt 0:18:57]} Bg7 {[%emt 0:11:18]} 9. Nc2 {[%emt 0:06:28]} b5 $146 {[%emt 0:03:43]} ({Predecessor:} 9... Na5 10. Bb3 Nxb3 11. axb3 Be6 12. Ne3 O-O 13. Qc2 Nh5 14. Nd2 Nf4 15. Ndf1 d5 {0-1 Czernek,T (2302)-Jarocka,L (2143) Bialystok Zamenhof Memorial 41st 2022 (7)}) 10. Bb3 {[%emt 0:07:54]} Na5 {[%emt 0:01:30]} 11. Ne3 {[%emt 0:11:11]} Nxb3 {[%emt 0:00:14]} 12. axb3 {[%emt 0:00:04]} Ng8 {[%emt 0:21:08]} 13. Nf5 {[%emt 0:15:08]} Bxf5 {[%emt 0:10:18]} 14. exf5 {[%emt 0:00:08]} g4 {[%emt 0:07:14]} 15. Nd2 {[%emt 0:13:37]} Qg5 {[%emt 0:03:15]} 16. c4 {[%emt 0:03:00]} bxc4 {[%emt 0:10:46]} 17. Nxc4 {[%emt 0:20:25]} Qxf5 {[%emt 0:00:19]} 18. d4 {[%emt 0:00:03]} Ne7 {[%emt 0:03:44]} 19. dxe5 {[%emt 0:00:10]} dxe5 {[%emt 0:00:52]} 20. Ne3 {[%emt 0:07:21]} Qd7 {[%emt 0:00:41]} 21. Qxg4 {[%emt 0:00:20]} Qxg4 {[%emt 0:00:17]} 22. Nxg4 {[%emt 0:00:03]} f6 {[%emt 0:02:53]} 23. f4 {[%emt 0:00:28]} h5 {[%emt 0:02:29]} 24. Nf2 {[%emt 0:00:23]} O-O {[%emt 0:06:48]} 25. Bd2 {[%emt 0:00:10]} Rab8 {[%emt 0:07:20]} 26. Ra3 {[%emt 0:12:25]} Nf5 {[%emt 0:12:30]} 27. fxe5 {[%emt 0:02:13]} fxe5 {[%emt 0:00:05]} 28. b4 {[%emt 0:00:07]} Rb6 {[%emt 0:02:08]} 29. Rh3 {[%emt 0:02:01]} h4 {[%emt 0:02:16]} 30. Bc3 {[%emt 0:00:16]} Re8 {[%emt 0:03:03]} 31. Re4 {[%emt 0:01:14]} Rg6 {[%emt 0:04:09]} 32. Nd3 {[%emt 0:00:33]} Re7 {[%emt 0:01:18]} 33. Nc5 {[%emt 0:02:06]} (33. Bxe5 Rge6 34. Rf4 Rxe5 35. Nxe5 Rxe5) 33... Bf6 {[%emt 0:02:37]} 34. Rf3 {[%emt 0:00:07]} (34. Nxa6 $6 Reg7 $11) 34... Nd6 {[%emt 0:00:14]} 35. Re2 {[%emt 0:00:04]} Nb5 {[%emt 0:01:38]} 36. h3 {[%emt 0:02:33]} (36. Nxa6 Nxc3 37. Rxc3 (37. bxc3 e4 $11) 37... Rd7 (37... e4 38. Rxc7 Bd4+ 39. Kf1 $16)) 36... Bg7 {[%emt 0:00:58]} 37. Re4 {[%emt 0:01:00]} Bf6 {[%emt 0:00:34]} 38. Nd3 {[%emt 0:01:24]} Reg7 {[%emt 0:00:31] [#]} (38... Nxc3 $16 39. bxc3 c6) 39. Rf2 {[%emt 0:01:27]} ({Weaker is} 39. Nxe5 Rxg2+ 40. Kf1 Rg1+ 41. Ke2 R7g2+ (41... Nd6 42. Ref4 $11) 42. Rf2 Kg7 $11) (39. Bxe5 Bxe5 40. Nxe5 Rxg2+ 41. Kf1 Rxb2 $11) (39. Rxf6 $1 $18 Nxc3 (39... Rxf6 $2 {too greedy.} 40. Bxe5 Re6 41. Nc5 $18) 40. Rxg6 Nxe4 41. Nxe5 (41. Rxa6 Rd7 $11)) 39... Nxc3 $1 $14 {[%emt 0:00:32]} 40. bxc3 {[%emt 0:00:03]} Rg3 {[%emt 0:00:05]} 41. Nxe5 {[%emt 0:01:35]} (41. Ne1 $14 R7g6 42. Kh1) 41... Bxe5 $11 {[%emt 0:00:11]} 42. Rxe5 {[%emt 0:00:03]} Rxh3 {[%emt 0:00:28]} 43. Rc5 {[%emt 0:00:03]} Rd3 {[%emt 0:01:03]} 44. Kh2 {[%emt 0:00:07]} Rgg3 {[%emt 0:00:35]} 45. Rc2 {[%emt 0:00:25]} h3 {[%emt 0:00:12]} 46. Rxc7 {[%emt 0:00:06]} Kf8 $1 {[%emt 0:00:11]} 47. gxh3 {[%emt 0:01:58]} Rxh3+ {[%emt 0:00:07]} 48. Kg2 {[%emt 0:00:38]} Ke8 {[%emt 0:01:29]} 49. c4 {[%emt 0:00:49]} Rhg3+ {[%emt 0:00:44]} 50. Kf2 {[%emt 0:00:05]} Rgf3+ {[%emt 0:00:11]} 51. Ke1 {[%emt 0:00:04]} Kd8 {[%emt 0:00:26]} 52. Rg7 {[%emt 0:00:50]} Rde3+ {[%emt 0:00:21]} 53. Kd1 {[%emt 0:00:24]} Rf1+ {[%emt 0:00:22]} 54. Kd2 {[%emt 0:00:04]} Rb3 {[%emt 0:00:23]} 55. Ke2 {[%emt 0:01:13]} Rh1 {[%emt 0:00:05]} 56. Rd2+ {[%emt 0:00:12]} Kc8 {[%emt 0:01:03]} 57. Rg8+ {[%emt 0:00:14]} Kc7 {[%emt 0:00:01]} 58. Rg7+ {[%emt 0:00:05]} Kc8 {[%emt 0:00:02]} 59. Rg8+ {[%emt 0:00:04]} Kc7 {[%emt 0:00:02]} 60. Rg7+ {[%emt 0:00:03]} Kc8 {[%emt 0:00:04]} 1/2-1/2

[Event "GCT 11th Sinquefield Cup 2024"]
[Site "Saint Louis"]
[Date "2024.08.27"]
[Round "8.1"]
[White "Ding, Liren"]
[Black "Abdusattorov, Nodirbek"]
[Result "1/2-1/2"]
[ECO "E60"]
[WhiteElo "2745"]
[BlackElo "2762"]
[Annotator "TA"]
[PlyCount "45"]
[EventDate "2024.08.09"]
[EventType "tourn"]
[EventCountry "USA"]
[SourceTitle "playchess.com"]
[Source "ChessBase"]
[SourceQuality "1"]
[TimeControl "7200+30"]

{[%evp 9,45,5,6,0,16,11,40,30,16,18,18,13,19,18,41,44,46,50,52,50,37,56,71,63,52,69,50,34,43,41,47,30,51,0,43,0,44,0]} 1. c4 {[%emt 0:00:07]} g6 {[%emt 0:00:26]} 2. d4 {[%emt 0:00:56]} Nf6 {[%emt 0:00:07]} 3. h4 {[%emt 0:00:04]} c6 {[%emt 0:03:45]} 4. Nc3 {[%emt 0:00:22]} d5 {[%emt 0:00:19]} 5. cxd5 {[%emt 0:00:03]} cxd5 {[%emt 0:00:06]} 6. Bf4 {[%emt 0:00:03]} Bg7 {[%emt 0:00:07]} 7. e3 {[%emt 0:00:04]} O-O {[%emt 0:00:12]} 8. Be2 {[%emt 0:01:00]} Qb6 {[%emt 0:08:08]} 9. Qb3 {[%emt 0:17:31]} Qxb3 {[%emt 0:00:21]} 10. axb3 {[%emt 0:00:04]} Nc6 {[%emt 0:00:06]} 11. Nf3 {[%emt 0:00:07]} Bd7 {[%emt 0:01:00]} 12. Ne5 {[%emt 0:01:02]} e6 {[%emt 0:00:28]} 13. Nd3 {[%emt 0:13:27]} Rfc8 {[%emt 0:02:12]} 14. g4 {[%emt 0:03:29][%cal Bg2g4,Bg4g5][%mdl 32]} Bf8 {[%emt 0:01:43]} 15. g5 {[%emt 0:00:15]} Nh5 {[%emt 0:07:06]} 16. Bxh5 {[%emt 0:06:11]} gxh5 {[%emt 0:00:02]} 17. Kd2 {[%emt 0:00:06]} Nb4 {[%emt 0:10:04]} 18. Ne5 {[%emt 0:00:52]} Be8 {[%emt 0:00:12]} 19. Rhc1 {[%emt 0:00:08]} Nc6 {[%emt 0:06:04]} 20. Nd3 {[%emt 0:08:21] A dynamic duo of knights.} Nb4 {[%emt 0:00:49]} 21. Ne5 {[%emt 0:00:03]} Nc6 $1 {[%emt 0:00:08]} 22. Nd3 {[%emt 0:00:03]} Nb4 {[%emt 0:02:06]} 23. Ne5 {[%emt 0:00:15] Weighted Error Value: White=0.11 (very precise) /Black=0.06 (flawless) .  Inaccurate:     	White=1     	Black=1      OK:         	White=6     	Black=8      Best:        	White=1     	---        Strong:       	---       	Black=1} 1/2-1/2

[Event "GCT 11th Sinquefield Cup 2024"]
[Site "Saint Louis"]
[Date "2024.08.27"]
[Round "8.2"]
[White "Praggnanandhaa R"]
[Black "Caruana, Fabiano"]
[Result "1/2-1/2"]
[ECO "A29"]
[WhiteElo "2749"]
[BlackElo "2793"]
[Annotator "TA"]
[PlyCount "55"]
[EventDate "2024.08.09"]
[EventType "tourn"]
[EventCountry "USA"]
[SourceTitle "playchess.com"]
[Source "ChessBase"]
[SourceQuality "1"]
[TimeControl "7200+30"]

{[%evp 15,55,-2,15,13,17,-6,21,19,18,8,15,9,15,28,15,0,8,0,0,0,0,-56,-45,-54,-52,-57,-29,-66,-58,-76,-68,-81,-54,-24,0,-80,0,-63,0,-81,0,-71]} 1. c4 {[%emt 0:01:05]} Nf6 {[%emt 0:00:08]} 2. Nc3 {[%emt 0:00:21]} e5 {[%emt 0:00:11]} 3. Nf3 {[%emt 0:00:16]} Nc6 {[%emt 0:00:06]} 4. g3 {[%emt 0:00:05]} d5 {[%emt 0:05:49]} 5. cxd5 {[%emt 0:00:07]} Nxd5 {[%emt 0:00:02]} 6. Bg2 {[%emt 0:00:12]} Bc5 {[%emt 0:00:07]} 7. O-O {[%emt 0:00:24]} O-O {[%emt 0:00:05]} 8. d3 {[%emt 0:00:05]} h6 {[%emt 0:00:39]} 9. Nxd5 {[%emt 0:00:18]} Qxd5 {[%emt 0:00:04]} 10. Bd2 {[%emt 0:00:04]} Qe6 {[%emt 0:05:24]} 11. Qc2 {[%emt 0:03:10]} Qe7 {[%emt 0:02:02]} 12. Rac1 {[%emt 0:03:33]} Bd6 {[%emt 0:17:59]} 13. a3 {[%emt 0:09:23]} Nd4 {[%emt 0:10:03]} 14. Nxd4 {[%emt 0:04:26]} exd4 {[%emt 0:00:10]} 15. Rfe1 {[%emt 0:00:52]} c6 {[%emt 0:00:10]} 16. b4 {[%emt 0:03:32]} Be6 {[%emt 0:02:00]} 17. Qb2 {[%emt 0:04:31]} Rfd8 {[%emt 0:10:01]} 18. Qxd4 {[%emt 0:18:05] [#]} (18. f4 $11) 18... Bxg3 $1 $15 {[%emt 0:00:09]} 19. Qc5 {[%emt 0:00:06]} (19. Qe4 Bd6) 19... Bd6 {[%emt 0:02:35]} 20. Qh5 {[%emt 0:00:25]} f5 {[%emt 0:20:11]} 21. Bf3 {[%emt 0:18:40]} Be5 {[%emt 0:06:34]} 22. Be3 {[%emt 0:07:35] Inhibits Rd4.} Qf6 {[%emt 0:11:41]} 23. Kh1 {[%emt 0:05:14]} Bf7 {[%emt 0:04:08]} 24. Qh3 {[%emt 0:00:10]} Be6 {[%emt 0:00:41]} ({Black should try} 24... Bb2 $11 25. Rc5 Be6) 25. Qh5 $1 $17 {[%emt 0:03:51]} Bf7 {[%emt 0:08:47]} 26. Qh3 {[%emt 0:00:20][%cal Ob4b5]} Be6 {[%emt 0:00:03] [#] White must now prevent ...f4.} 27. Qh5 $1 {[%emt 0:15:37]} Bf7 {[%emt 0:00:20]} 28. Qh3 {[%emt 0:00:15] Weighted Error Value: White=0.09 (flawless) /Black=0.23 (precise) .  Mistake:       	White=1     	Black=1      Inaccurate:     	White=1     	Black=3      OK:         	White=8     	Black=7      Best:        	White=1     	---        Strong:       	White=2     	---        Brilliant:      	---       	Black=1} 1/2-1/2